[Event "Paul Kerese Mälestusfestival 2022 Välkturniir"]
[Site "Paul Kerese Mälestusfestival 2022 Kiirturniir"]
[Date "????.??.??"]
[Round "5.2"]
[White "Agrest, Evgenij"]
[Black "Olde, Margareth"]
[Result "1-0"]
[TimeControl "3 min + 2 sek iga käigu eest"]
[WhiteTitle "GM"]
[BlackTitle "WIM"]
[WhiteElo "2574"]
[BlackElo "1971"]

1. Nf3 {[%clk 00:03:02]} {[%emt 00:00:01]} d5 {[%clk 00:03:02]} {[%emt
00:00:03]} 2. b3 {[%clk 00:03:02]} Nf6 {[%clk 00:03:00]} {[%emt 00:00:05]} 3.
Bb2 {[%clk 00:03:03]} {[%emt 00:00:01]} c5 {[%clk 00:02:57]} {[%emt 00:00:05]}
4. e3 {[%clk 00:03:02]} {[%emt 00:00:03]} e6 {[%clk 00:02:55]} {[%emt
00:00:04]} 5. c4 {[%clk 00:03:02]} {[%emt 00:00:02]} Nc6 {[%clk 00:02:54]}
{[%emt 00:00:04]} 6. cxd5 {[%clk 00:03:02]} {[%emt 00:00:02]} exd5 {[%clk
00:02:55]} 7. Nc3 {[%clk 00:03:02]} {[%emt 00:00:02]} Be7 {[%clk 00:02:54]}
{[%emt 00:00:03]} 8. Rc1 {[%clk 00:03:02]} {[%emt 00:00:02]} O-O {[%clk
00:02:53]} {[%emt 00:00:02]} 9. d4 {[%clk 00:02:57]} {[%emt 00:00:07]} cxd4
{[%clk 00:02:54]} {[%emt 00:00:02]} 10. Nxd4 {[%clk 00:02:57]} Nxd4 {[%clk
00:02:49]} {[%emt 00:00:08]} 11. Qxd4 {[%clk 00:02:57]} {[%emt 00:00:02]} b6
{[%clk 00:02:43]} {[%emt 00:00:08]} 12. Be2 {[%clk 00:02:51]} {[%emt 00:00:07]}
Bc5 {[%clk 00:02:42]} {[%emt 00:00:03]} 13. Qd1 {[%clk 00:02:50]} {[%emt
00:00:02]} d4 {[%clk 00:02:30]} {[%emt 00:00:15]} 14. exd4 {[%clk 00:02:32]}
{[%emt 00:00:20]} Bxd4 {[%clk 00:02:25]} {[%emt 00:00:07]} 15. O-O {[%clk
00:02:32]} {[%emt 00:00:02]} Bb7 {[%clk 00:02:26]} {[%emt 00:00:01]} 16. Bf3
{[%clk 00:02:33]} {[%emt 00:00:01]} Bxf3 {[%clk 00:01:39]} {[%emt 00:00:49]} 17.
Qxf3 {[%clk 00:02:32]} {[%emt 00:00:02]} Bxc3 {[%clk 00:01:41]} {[%emt
00:00:01]} 18. Bxc3 {[%clk 00:02:32]} {[%emt 00:00:02]} Qd5 {[%clk 00:01:41]}
{[%emt 00:00:02]} 19. Qg3 {[%clk 00:02:23]} {[%emt 00:00:10]} Nh5 {[%clk
00:01:36]} {[%emt 00:00:08]} 20. Qg4 {[%clk 00:02:23]} {[%emt 00:00:01]} h6
{[%clk 00:01:16]} {[%emt 00:00:22]} 21. h4 {[%clk 00:02:08]} {[%emt 00:00:17]}
g6 {[%clk 00:00:50]} {[%emt 00:00:28]} 22. Rfd1 {[%clk 00:02:02]} {[%emt
00:00:06]} Qe6 {[%clk 00:00:36]} {[%emt 00:00:18]} 23. Qxe6 {[%clk 00:01:57]}
{[%emt 00:00:07]} fxe6 {[%clk 00:00:37]} 24. g3 {[%clk 00:01:42]} {[%emt
00:00:17]} Rfd8 {[%clk 00:00:29]} {[%emt 00:00:10]} 25. Be5 {[%clk 00:01:37]}
{[%emt 00:00:07]} Ng7 {[%clk 00:00:08]} {[%emt 00:00:23]} 26. Rxd8+ {[%emt
00:00:17]} Rxd8 27. Rc7 {[%clk 00:01:22]} {[%emt 00:00:01]} Nf5 {[%clk
00:00:12]} 28. Rxa7 {[%clk 00:01:22]} {[%emt 00:00:02]} Rd5 {[%clk 00:00:13]}
29. Bf6 {[%clk 00:01:15]} {[%emt 00:00:09]} Nd4 {[%clk 00:00:13]} {[%emt
00:00:02]} 30. Rg7+ {[%clk 00:01:10]} {[%emt 00:00:06]} Kf8 {[%clk 00:00:15]}
{[%emt 00:00:01]} 31. Bxd4 {[%clk 00:01:10]} {[%emt 00:00:01]} Rxd4 {[%clk
00:00:16]} {[%emt 00:00:01]} 32. Rxg6 {[%clk 00:01:11]} {[%emt 00:00:01]} Kf7
{[%clk 00:00:18]} 33. Rxh6 {[%clk 00:01:11]} {[%emt 00:00:02]} Rd2 {[%clk
00:00:18]} {[%emt 00:00:02]} 34. Rh7+ {[%clk 00:01:12]} Kg6 {[%clk 00:00:19]}
{[%emt 00:00:02]} 35. Rb7 {[%clk 00:01:12]} Rxa2 {[%clk 00:00:19]} {[%emt
00:00:02]} 36. Rxb6 Kf5 37. Kg2 {[%clk 00:01:14]} e5 {[%clk 00:00:22]} {[%emt
00:00:01]} 38. Rb5 {[%clk 00:01:15]} Rc2 {[%clk 00:00:22]} {[%emt 00:00:02]} 39.
b4 {[%clk 00:01:14]} {[%emt 00:00:03]} Re2 {[%clk 00:00:21]} {[%emt 00:00:03]}
40. Rb8 {[%clk 00:01:13]} {[%emt 00:00:02]} Ke4 {[%clk 00:00:21]} {[%emt
00:00:02]} 41. b5 {[%clk 00:01:13]} {[%emt 00:00:02]} Rb2 {[%clk 00:00:22]} 42.
b6 {[%clk 00:01:15]} {[%emt 00:00:01]} Kd3 {[%clk 00:00:22]} {[%emt 00:00:01]}
43. b7 {[%clk 00:01:16]} Ke2 {[%clk 00:00:23]} {[%emt 00:00:01]} 44. Re8 {[%clk
00:01:16]} 1-0

[Event "Paul Kerese Mälestusfestival 2022 Välkturniir"]
[Site "Paul Kerese Mälestusfestival 2022 Kiirturniir"]
[Date "????.??.??"]
[Round "5.3"]
[White "Golubovskis, Maksims"]
[Black "Chukavin, Kirill"]
[Result "0-1"]
[TimeControl "3 min + 2 sek iga käigu eest"]
[BlackTitle "FM"]
[WhiteElo "2163"]
[BlackElo "2280"]

1. Nf3 {[%clk 00:03:03]} {[%emt 00:01:49]} d5 {[%clk 00:03:01]} {[%emt
00:00:03]} 2. c4 {[%clk 00:03:05]} {[%emt 00:00:01]} e6 {[%clk 00:03:02]} 3. g3
{[%clk 00:03:06]} {[%emt 00:00:01]} Nf6 {[%clk 00:03:02]} {[%emt 00:00:02]} 4.
Bg2 {[%clk 00:03:07]} d4 {[%clk 00:02:54]} {[%emt 00:00:10]} 5. d3 {[%clk
00:03:08]} {[%emt 00:00:01]} c5 {[%clk 00:02:54]} {[%emt 00:00:02]} 6. b4
{[%clk 00:03:10]} {[%emt 00:00:01]} cxb4 {[%clk 00:02:31]} {[%emt 00:00:24]} 7.
a3 {[%clk 00:03:11]} Nc6 {[%clk 00:02:26]} {[%emt 00:00:08]} 8. O-O {[%clk
00:03:08]} {[%emt 00:00:04]} bxa3 {[%clk 00:02:24]} {[%emt 00:00:05]} 9. Qa4
{[%clk 00:02:56]} {[%emt 00:00:14]} Bd7 {[%clk 00:02:13]} {[%emt 00:00:13]} 10.
Bxa3 {[%clk 00:02:57]} Bxa3 {[%clk 00:02:11]} {[%emt 00:00:04]} 11. Qxa3 {[%clk
00:02:59]} {[%emt 00:00:01]} Qe7 {[%clk 00:02:12]} 12. e3 {[%clk 00:02:55]}
{[%emt 00:00:06]} dxe3 {[%clk 00:02:05]} {[%emt 00:00:08]} 13. fxe3 {[%clk
00:02:54]} {[%emt 00:00:02]} O-O {[%clk 00:01:55]} {[%emt 00:00:13]} 14. Qxe7
{[%clk 00:02:29]} {[%emt 00:00:27]} Nxe7 {[%clk 00:01:56]} {[%emt 00:00:01]} 15.
Ne5 {[%clk 00:02:31]} Bc6 {[%clk 00:01:48]} {[%emt 00:00:10]} 16. Nxc6 {[%clk
00:02:25]} {[%emt 00:00:08]} Nxc6 {[%clk 00:01:49]} 17. d4 {[%clk 00:01:50]}
{[%emt 00:00:37]} e5 {[%clk 00:01:34]} {[%emt 00:00:17]} 18. d5 {[%clk
00:01:18]} {[%emt 00:00:34]} Nb4 {[%clk 00:01:36]} 19. Rc1 {[%clk 00:00:53]}
{[%emt 00:00:27]} Rfc8 {[%clk 00:01:36]} {[%emt 00:00:02]} 20. Nd2 {[%clk
00:00:40]} {[%emt 00:00:14]} Nd7 {[%clk 00:01:36]} {[%emt 00:00:03]} 21. Nb3
{[%clk 00:00:36]} {[%emt 00:00:05]} Nc5 {[%clk 00:01:34]} {[%emt 00:00:04]} 22.
Nxc5 {[%clk 00:00:26]} {[%emt 00:00:12]} Rxc5 {[%clk 00:01:35]} 23. d6 {[%clk
00:00:28]} a5 {[%clk 00:00:54]} {[%emt 00:00:43]} 24. Bxb7 {[%clk 00:00:22]}
{[%emt 00:00:08]} Rd8 {[%clk 00:00:55]} 25. Rd1 {[%clk 00:00:13]} {[%emt
00:00:10]} Nc2 {[%clk 00:00:55]} {[%emt 00:00:02]} 26. Rac1 {[%clk 00:00:05]}
{[%emt 00:00:11]} Nxe3 {[%clk 00:00:55]} {[%emt 00:00:03]} 27. Rd3 {[%clk
00:00:06]} Nf5 {[%clk 00:00:37]} {[%emt 00:00:20]} 28. d7 {[%clk 00:00:06]}
{[%emt 00:00:02]} Nd4 {[%clk 00:00:37]} {[%emt 00:00:02]} 29. Rxd4 {[%clk
00:00:03]} {[%emt 00:00:05]} exd4 {[%clk 00:00:37]} {[%emt 00:00:02]} 30. Bc8
{[%clk 00:00:05]} d3 {[%clk 00:00:24]} {[%emt 00:00:15]} 31. Kf2 {[%clk
00:00:03]} {[%emt 00:00:03]} d2 {[%clk 00:00:23]} {[%emt 00:00:03]} 32. Rd1
{[%clk 00:00:04]} Rxc4 {[%clk 00:00:25]} {[%emt 00:00:01]} 33. Rxd2 {[%clk
00:00:03]} {[%emt 00:00:03]} Kf8 {[%clk 00:00:22]} {[%emt 00:00:06]} 34. Ke3
{[%clk 00:00:03]} {[%emt 00:00:03]} Ke7 {[%clk 00:00:20]} {[%emt 00:00:03]} 35.
Rd5 {[%clk 00:00:03]} {[%emt 00:00:02]} a4 {[%clk 00:00:20]} {[%emt 00:00:02]}
36. Ra5 {[%clk 00:00:04]} Kd6 {[%clk 00:00:17]} {[%emt 00:00:06]} 37. Kd3
{[%clk 00:00:06]} Rb4 {[%clk 00:00:17]} 38. Kc3 {[%clk 00:00:07]} {[%emt
00:00:01]} Rb3+ {[%clk 00:00:15]} {[%emt 00:00:04]} 39. Kc4 {[%clk 00:00:09]}
{[%emt 00:00:01]} Ra3 {[%clk 00:00:13]} {[%emt 00:00:04]} 40. Kb4 {[%clk
00:00:10]} Ra2 {[%clk 00:00:14]} {[%emt 00:00:01]} 41. h3 {[%clk 00:00:10]}
{[%emt 00:00:01]} Rxd7 {[%clk 00:00:12]} {[%emt 00:00:04]} 42. Ra6+ {[%clk
00:00:10]} {[%emt 00:00:02]} Ke7 {[%clk 00:00:13]} 43. Bxd7 {[%clk 00:00:08]}
{[%emt 00:00:04]} Kxd7 {[%clk 00:00:15]} {[%emt 00:00:01]} 0-1

[Event "Paul Kerese Mälestusfestival 2022 Välkturniir"]
[Site "Paul Kerese Mälestusfestival 2022 Kiirturniir"]
[Date "????.??.??"]
[Round "5.4"]
[White "Mikko, Rondo"]
[Black "Paikens, Reinis"]
[Result "0-1"]
[TimeControl "3 min + 2 sek iga käigu eest"]
[WhiteElo "1933"]
[BlackElo "1678"]

1. Nf3 {[%clk 00:03:02]} {[%emt 00:00:01]} d5 {[%clk 00:03:03]} {[%emt
00:00:01]} 2. g3 {[%clk 00:03:04]} c5 {[%clk 00:03:04]} 3. Bg2 {[%clk
00:03:05]} Nc6 {[%clk 00:03:06]} {[%emt 00:00:03]} 4. O-O {[%clk 00:03:05]}
{[%emt 00:00:01]} Nf6 {[%clk 00:03:07]} 5. d3 {[%clk 00:03:07]} g6 {[%clk
00:03:08]} {[%emt 00:00:02]} 6. Nbd2 {[%clk 00:03:08]} Bg7 {[%clk 00:03:09]}
{[%emt 00:00:01]} 7. e4 {[%clk 00:03:08]} dxe4 {[%clk 00:02:55]} {[%emt
00:00:16]} 8. dxe4 {[%clk 00:02:59]} {[%emt 00:00:12]} O-O {[%clk 00:02:54]}
{[%emt 00:00:03]} 9. c3 {[%clk 00:03:00]} {[%emt 00:00:01]} e5 {[%clk
00:02:51]} {[%emt 00:00:04]} 10. Qc2 {[%clk 00:03:00]} {[%emt 00:00:02]} h6
{[%clk 00:02:46]} {[%emt 00:00:07]} 11. Nc4 {[%clk 00:02:57]} {[%emt 00:00:05]}
Qc7 {[%clk 00:02:27]} {[%emt 00:00:21]} 12. Ne3 {[%clk 00:02:54]} {[%emt
00:00:04]} Be6 {[%clk 00:02:26]} {[%emt 00:00:04]} 13. b3 {[%clk 00:02:52]}
{[%emt 00:00:04]} Rad8 {[%clk 00:02:21]} {[%emt 00:00:07]} 14. Bb2 {[%clk
00:02:45]} {[%emt 00:00:09]} b5 {[%clk 00:02:22]} {[%emt 00:00:01]} 15. Rfd1
{[%clk 00:02:35]} {[%emt 00:00:11]} a5 {[%clk 00:02:23]} {[%emt 00:00:01]} 16.
a4 {[%clk 00:02:31]} {[%emt 00:00:06]} b4 {[%clk 00:02:10]} {[%emt 00:00:16]}
17. c4 {[%clk 00:02:20]} {[%emt 00:00:13]} Nd4 {[%clk 00:02:11]} {[%emt
00:00:01]} 18. Nxd4 {[%clk 00:02:09]} {[%emt 00:00:13]} cxd4 {[%clk 00:01:49]}
{[%emt 00:00:24]} 19. Nf1 {[%clk 00:01:54]} {[%emt 00:00:16]} Nd7 {[%clk
00:01:46]} {[%emt 00:00:05]} 20. Rab1 {[%clk 00:01:13]} {[%emt 00:00:43]} Nc5
{[%clk 00:01:47]} {[%emt 00:00:01]} 21. Bc1 {[%clk 00:01:09]} {[%emt 00:00:06]}
f5 {[%clk 00:01:31]} {[%emt 00:00:19]} 22. Nd2 {[%clk 00:00:44]} {[%emt
00:00:26]} f4 {[%clk 00:01:10]} {[%emt 00:00:23]} 23. Nf3 {[%clk 00:00:23]}
{[%emt 00:00:23]} Bg4 {[%clk 00:01:02]} {[%emt 00:00:10]} 24. Rd3 {[%clk
00:00:05]} {[%emt 00:00:21]} Nxd3 {[%emt 00:00:09]} 25. Qxd3 fxg3 {[%clk
00:00:55]} {[%emt 00:00:02]} 26. hxg3 {[%clk 00:00:08]} Bxf3 {[%clk 00:00:53]}
{[%emt 00:00:04]} 27. Bxf3 {[%clk 00:00:09]} {[%emt 00:00:01]} Qf7 {[%clk
00:00:55]} 28. Kg2 {[%clk 00:00:10]} Rd6 {[%clk 00:00:53]} {[%emt 00:00:05]} 29.
c5 {[%clk 00:00:03]} {[%emt 00:00:09]} Rf6 {[%clk 00:00:54]} {[%emt 00:00:01]}
30. Be2 {[%clk 00:00:03]} {[%emt 00:00:02]} Rxf2+ {[%clk 00:00:55]} {[%emt
00:00:01]} 31. Kh3 {[%clk 00:00:05]} h5 {[%clk 00:00:52]} {[%emt 00:00:05]} 32.
Bg5 {[%clk 00:00:05]} {[%emt 00:00:01]} Qe6+ {[%clk 00:00:53]} {[%emt
00:00:01]} 33. g4 {[%clk 00:00:06]} Bf6 {[%clk 00:00:26]} {[%emt 00:00:29]} 34.
Qc4 {[%clk 00:00:06]} {[%emt 00:00:03]} Qxc4 {[%clk 00:00:19]} {[%emt
00:00:09]} 35. Bxc4+ {[%clk 00:00:07]} Kg7 {[%clk 00:00:20]} {[%emt 00:00:01]}
36. Bxf6+ {[%clk 00:00:04]} {[%emt 00:00:05]} R8xf6 {[%clk 00:00:21]} 37. gxh5
{[%clk 00:00:05]} {[%emt 00:00:01]} gxh5 {[%clk 00:00:22]} {[%emt 00:00:01]} 38.
Rg1+ {[%clk 00:00:06]} Kh6 {[%clk 00:00:23]} {[%emt 00:00:01]} 39. Rg8 {[%clk
00:00:05]} {[%emt 00:00:03]} R6f3+ {[%clk 00:00:22]} {[%emt 00:00:02]} 40. Rg3
{[%emt 00:00:04]} Rxg3+ {[%clk 00:00:18]} {[%emt 00:00:04]} 41. Kxg3 {[%clk
00:00:07]} Rf6 {[%clk 00:00:19]} 42. Bd5 {[%clk 00:00:08]} {[%emt 00:00:01]}
Rf8 {[%clk 00:00:17]} {[%emt 00:00:04]} 43. Be6 {[%clk 00:00:09]} {[%emt
00:00:01]} Re8 {[%clk 00:00:17]} {[%emt 00:00:02]} 44. Bd7 {[%clk 00:00:10]}
{[%emt 00:00:01]} Rg8+ {[%clk 00:00:13]} {[%emt 00:00:06]} 45. Kf2 {[%clk
00:00:08]} {[%emt 00:00:04]} h4 {[%clk 00:00:09]} {[%emt 00:00:06]} 46. c6
{[%clk 00:00:09]} h3 {[%clk 00:00:11]} 47. Bxh3 {[%clk 00:00:09]} {[%emt
00:00:02]} Rf8+ {[%clk 00:00:08]} {[%emt 00:00:03]} 48. Ke2 {[%clk 00:00:09]}
{[%emt 00:00:03]} Kg5 {[%clk 00:00:05]} {[%emt 00:00:06]} 49. c7 {[%clk
00:00:10]} Kf4 {[%clk 00:00:06]} 50. Bf5 {[%clk 00:00:11]} {[%emt 00:00:01]}
Re8 {[%clk 00:00:05]} {[%emt 00:00:04]} 51. Kd3 {[%clk 00:00:12]} Rf8 {[%clk
00:00:04]} {[%emt 00:00:03]} 52. c8=Q {[%clk 00:00:11]} {[%emt 00:00:01]} Rxc8
{[%clk 00:00:05]} {[%emt 00:00:02]} 53. Bxc8 {[%clk 00:00:13]} Kf3 {[%clk
00:00:07]} 54. Bf5 {[%clk 00:00:13]} {[%emt 00:00:01]} Kf4 {[%clk 00:00:08]}
{[%emt 00:00:01]} 55. Bc8 {[%clk 00:00:14]} Kf3 {[%clk 00:00:09]} {[%emt
00:00:01]} 56. Bb7 {[%clk 00:00:15]} Kf4 {[%clk 00:00:10]} {[%emt 00:00:01]} 57.
Ke2 {[%clk 00:00:16]} Kg4 {[%clk 00:00:10]} {[%emt 00:00:02]} 58. Ba6 {[%clk
00:00:16]} {[%emt 00:00:03]} Kf4 {[%clk 00:00:11]} 59. Bd3 {[%clk 00:00:17]}
Kg4 {[%clk 00:00:13]} {[%emt 00:00:01]} 60. Bc2 {[%clk 00:00:16]} {[%emt
00:00:02]} Kf4 {[%clk 00:00:14]} 61. Kd3 {[%clk 00:00:18]} Kf3 {[%clk
00:00:15]} {[%emt 00:00:01]} 62. Kc4 {[%clk 00:00:19]} Ke3 {[%clk 00:00:16]} 63.
Bd3 {[%clk 00:00:20]} {[%emt 00:00:01]} Kd2 {[%clk 00:00:17]} {[%emt 00:00:01]}
64. Bf1 {[%clk 00:00:21]} Kc2 {[%clk 00:00:16]} {[%emt 00:00:04]} 65. Bh3
{[%clk 00:00:09]} {[%emt 00:00:14]} d3 {[%clk 00:00:16]} {[%emt 00:00:02]} 66.
Bg4 {[%clk 00:00:10]} d2 {[%clk 00:00:18]} {[%emt 00:00:01]} 67. Kd5 {[%clk
00:00:11]} Kxb3 {[%clk 00:00:17]} {[%emt 00:00:02]} 68. Kxe5 {[%clk 00:00:12]}
{[%emt 00:00:01]} Kc2 {[%clk 00:00:16]} {[%emt 00:00:02]} 69. Kd6 {[%clk
00:00:13]} b3 {[%clk 00:00:17]} {[%emt 00:00:02]} 70. e5 {[%clk 00:00:15]} b2
{[%clk 00:00:18]} 71. e6 {[%clk 00:00:16]} b1=Q {[%clk 00:00:19]} {[%emt
00:00:02]} 72. Bf5+ {[%clk 00:00:17]} Kc1 {[%clk 00:00:20]} {[%emt 00:00:01]}
73. Bxb1 {[%clk 00:00:18]} {[%emt 00:00:01]} Kxb1 {[%clk 00:00:21]} 74. e7
{[%clk 00:00:18]} {[%emt 00:00:01]} d1=Q+ {[%clk 00:00:20]} {[%emt 00:00:03]}
75. Kc7 {[%clk 00:00:19]} {[%emt 00:00:01]} Qc2+ {[%clk 00:00:20]} {[%emt
00:00:02]} 76. Kd8 {[%clk 00:00:20]} {[%emt 00:00:01]} Qd3+ {[%clk 00:00:20]}
{[%emt 00:00:02]} 77. Kc7 {[%clk 00:00:20]} {[%emt 00:00:02]} Qc4+ {[%clk
00:00:21]} {[%emt 00:00:01]} 78. Kd8 {[%clk 00:00:21]} {[%emt 00:00:01]} Qd5+
{[%clk 00:00:22]} {[%emt 00:00:01]} 79. Kc7 {[%clk 00:00:21]} {[%emt 00:00:02]}
Qe6 {[%clk 00:00:22]} {[%emt 00:00:02]} 80. Kd8 {[%clk 00:00:20]} {[%emt
00:00:03]} Qd6+ {[%clk 00:00:23]} 0-1

[Event "Paul Kerese Mälestusfestival 2022 Välkturniir"]
[Site "Paul Kerese Mälestusfestival 2022 Kiirturniir"]
[Date "????.??.??"]
[Round "5.5"]
[White "Kokk, Karl Mattias"]
[Black "Agafonov, Yuri"]
[Result "0-1"]
[TimeControl "3 min + 2 sek iga käigu eest"]
[WhiteElo "1338"]
[BlackElo "1913"]

1. e4 {[%clk 00:03:02]} {[%emt 00:00:02]} g6 {[%clk 00:03:03]} {[%emt
00:00:01]} 2. d4 {[%clk 00:03:00]} {[%emt 00:00:04]} Bg7 {[%clk 00:03:04]} 3.
c3 {[%clk 00:02:52]} {[%emt 00:00:10]} d6 {[%clk 00:02:58]} {[%emt 00:00:08]} 4.
Bd3 {[%clk 00:02:53]} {[%emt 00:00:02]} Nd7 {[%clk 00:02:57]} {[%emt 00:00:04]}
5. Ne2 {[%clk 00:02:48]} {[%emt 00:00:06]} e5 {[%clk 00:02:55]} {[%emt
00:00:03]} 6. Be3 {[%clk 00:02:44]} {[%emt 00:00:07]} Ngf6 {[%clk 00:02:56]}
{[%emt 00:00:02]} 7. h3 {[%clk 00:02:44]} {[%emt 00:00:02]} O-O {[%clk
00:02:56]} {[%emt 00:00:02]} 8. O-O {[%clk 00:02:41]} {[%emt 00:00:05]} Qe7
{[%clk 00:02:44]} {[%emt 00:00:14]} 9. Nd2 {[%clk 00:02:31]} {[%emt 00:00:11]}
c5 {[%clk 00:02:40]} {[%emt 00:00:07]} 10. dxc5 {[%clk 00:02:24]} {[%emt
00:00:09]} Nxc5 {[%clk 00:02:37]} {[%emt 00:00:05]} 11. Bc2 {[%clk 00:02:24]}
{[%emt 00:00:02]} Bd7 {[%clk 00:02:37]} {[%emt 00:00:02]} 12. Ng3 {[%clk
00:02:17]} {[%emt 00:00:09]} Rfd8 {[%clk 00:02:36]} {[%emt 00:00:03]} 13. Nb3
{[%clk 00:02:16]} {[%emt 00:00:03]} Rac8 {[%clk 00:02:34]} {[%emt 00:00:04]} 14.
Qe2 {[%clk 00:02:06]} {[%emt 00:00:12]} Na4 {[%clk 00:02:33]} {[%emt 00:00:03]}
15. Bd3 {[%clk 00:01:54]} {[%emt 00:00:14]} Be6 {[%clk 00:02:23]} {[%emt
00:00:11]} 16. f4 {[%clk 00:01:35]} {[%emt 00:00:21]} exf4 {[%clk 00:02:04]}
{[%emt 00:00:21]} 17. Bxf4 {[%clk 00:01:35]} {[%emt 00:00:03]} Bxb3 {[%clk
00:01:59]} {[%emt 00:00:07]} 18. axb3 {[%clk 00:01:35]} {[%emt 00:00:02]} Nc5
{[%clk 00:02:00]} 19. Rxa7 {[%clk 00:01:25]} {[%emt 00:00:12]} Nxd3 {[%clk
00:01:44]} {[%emt 00:00:18]} 20. Qxd3 {[%clk 00:01:26]} {[%emt 00:00:02]} d5
{[%clk 00:01:43]} {[%emt 00:00:02]} 21. e5 {[%emt 00:00:11]} Ne8 {[%clk
00:01:34]} {[%emt 00:00:10]} 22. Re1 {[%clk 00:01:16]} {[%emt 00:00:04]} d4
{[%clk 00:01:26]} {[%emt 00:00:10]} 23. cxd4 {[%clk 00:01:10]} {[%emt
00:00:08]} Rxd4 {[%clk 00:01:26]} {[%emt 00:00:02]} 24. Qxd4 {[%clk 00:01:06]}
{[%emt 00:00:06]} Rd8 {[%clk 00:01:19]} {[%emt 00:00:09]} 25. Qe4 {[%clk
00:01:04]} {[%emt 00:00:04]} Qc5+ {[%clk 00:01:17]} {[%emt 00:00:04]} 26. Qe3
{[%clk 00:01:04]} {[%emt 00:00:02]} Qb4 {[%clk 00:01:16]} {[%emt 00:00:03]} 27.
Rea1 {[%clk 00:01:02]} {[%emt 00:00:04]} Nc7 {[%clk 00:01:16]} {[%emt
00:00:02]} 28. Bg5 {[%clk 00:00:55]} {[%emt 00:00:09]} Re8 {[%clk 00:01:15]}
{[%emt 00:00:02]} 29. Qf3 {[%clk 00:00:50]} {[%emt 00:00:07]} Bxe5 {[%clk
00:01:13]} {[%emt 00:00:04]} 30. Rxb7 {[%clk 00:00:50]} {[%emt 00:00:03]} Qc5+
{[%clk 00:01:09]} {[%emt 00:00:06]} 31. Be3 {[%clk 00:00:50]} {[%emt 00:00:02]}
Qe7 {[%clk 00:01:09]} {[%emt 00:00:02]} 32. Raa7 {[%clk 00:00:51]} {[%emt
00:00:01]} Rd8 {[%clk 00:01:00]} {[%emt 00:00:10]} 33. Ne4 {[%clk 00:00:43]}
{[%emt 00:00:10]} Kg7 {[%clk 00:01:00]} {[%emt 00:00:02]} 34. Bb6 {[%clk
00:00:41]} {[%emt 00:00:04]} Qb4 {[%clk 00:00:44]} {[%emt 00:00:18]} 35. Qf1
{[%clk 00:00:11]} {[%emt 00:00:32]} Qxe4 {[%clk 00:00:41]} {[%emt 00:00:05]} 36.
Bxc7 {[%clk 00:00:10]} {[%emt 00:00:02]} Bd4+ {[%clk 00:00:39]} {[%emt
00:00:04]} 37. Kh1 {[%clk 00:00:10]} {[%emt 00:00:02]} Bxa7 {[%clk 00:00:40]}
{[%emt 00:00:01]} 38. Bxd8 {[%clk 00:00:08]} {[%emt 00:00:04]} Qxb7 {[%clk
00:00:40]} {[%emt 00:00:02]} 39. Qf6+ {[%clk 00:00:07]} {[%emt 00:00:03]} Kg8
{[%clk 00:00:40]} {[%emt 00:00:01]} 40. Kh2 {[%clk 00:00:05]} {[%emt 00:00:04]}
Qxb3 {[%clk 00:00:36]} {[%emt 00:00:06]} 41. Qe7 {[%clk 00:00:05]} {[%emt
00:00:02]} Bb8+ {[%clk 00:00:34]} {[%emt 00:00:04]} 42. Kg1 {[%clk 00:00:03]}
{[%emt 00:00:04]} Qd1+ {[%clk 00:00:35]} {[%emt 00:00:01]} 43. Kf2 {[%clk
00:00:04]} Qd2+ {[%clk 00:00:33]} {[%emt 00:00:03]} 44. Kf3 {[%clk 00:00:04]}
{[%emt 00:00:03]} Qd3+ {[%clk 00:00:33]} {[%emt 00:00:02]} 45. Kf2 {[%clk
00:00:03]} {[%emt 00:00:54]} Qd4+ {[%clk 00:01:28]} {[%emt 00:00:02]} 46. Kf1
{[%clk 00:00:04]} {[%emt 00:00:02]} Be5 {[%clk 00:01:20]} {[%emt 00:00:10]} 47.
Qe8+ {[%clk 00:00:04]} {[%emt 00:00:02]} Kg7 {[%clk 00:01:21]} 48. Qe7 {[%clk
00:00:04]} {[%emt 00:00:03]} Qxb2 {[%clk 00:01:19]} {[%emt 00:00:05]} 49. Qc5
{[%clk 00:00:04]} {[%emt 00:00:02]} Bd4 {[%clk 00:01:17]} {[%emt 00:00:03]} 50.
Qd5 {[%clk 00:00:04]} {[%emt 00:00:02]} Qf2# {[%emt 00:00:02]} 0-1